bitfinex/quotes_BTCUSD_20241223
["timestamp","ask_amount","ask_price","bid_price","bid_amount"]
[1734949076167,0.208805,96244.0,96242.0,0.73569099]
[1734949076364,0.001,96244.0,96242.0,0.73569099]
[1734949076583,0.002,96247.0,96242.0,0.73569099]
[1734949076766,0.001,96244.0,96242.0,0.73569099]
[1734949077183,0.001,96244.0,96242.0,0.66369098]
[1734949077945,0.004,96244.0,96242.0,0.66369098]
[1734949078191,0.001,96244.0,96242.0,0.66369098]
[1734949078632,0.207807,96243.0,96242.0,0.66369098]
[1734949080161,0.001,96243.0,96242.0,0.66369098]
[1734949080606,0.415602,96246.0,96242.0,0.66369098]
[1734949080803,0.001,96243.0,96242.0,0.66369098]
[1734949082159,0.415602,96246.0,96242.0,0.59169097]
[1734949082318,0.003,96243.0,96242.0,0.59169097]
[1734949082959,0.006,96243.0,96242.0,0.59169097]
[1734949083363,0.008,96243.0,96242.0,0.59169097]
[1734949083905,0.006,96243.0,96242.0,0.59169097]
[1734949084062,0.008,96243.0,96242.0,0.59169097]
[1734949084471,0.002,96243.0,96242.0,0.59169097]
[1734949084692,0.005,96243.0,96242.0,0.59169097]
[1734949085443,0.006,96243.0,96242.0,0.59169097]
[1734949085646,0.008,96243.0,96242.0,0.59169097]
[1734949086201,0.006,96243.0,96242.0,0.59169097]
[1734949086617,0.008,96243.0,96242.0,0.59169097]
[1734949087350,0.008,96243.0,96242.0,0.60209096]
[1734949088247,0.008,96243.0,96242.0,0.51969096]
[1734949090245,0.008,96243.0,96242.0,0.56499096]
[1734949090650,0.008,96243.0,96242.0,0.64559096]
[1734949093199,0.006,96243.0,96242.0,0.84689936]
[1734949093928,0.008,96243.0,96242.0,0.84689936]
[1734949094138,0.002,96243.0,96242.0,0.84689936]
[1734949094359,0.002,96243.0,96242.0,0.64559096]
[1734949094561,0.005,96243.0,96242.0,0.64559096]
[1734949094724,0.002,96243.0,96242.0,0.64559096]
[1734949094919,0.0020856,96243.0,96242.0,0.64559096]
[1734949095123,8.56e-05,96243.0,96242.0,0.64959096]
[1734949095357,8.56e-05,96243.0,96242.0,0.87489935]
[1734949096454,0.0010856,96243.0,96242.0,0.87489935]
[1734949096949,8.56e-05,96243.0,96242.0,0.87489935]
[1734949097116,8.56e-05,96243.0,96242.0,0.87589935]
[1734949097513,0.0010856,96243.0,96242.0,0.87589935]
[1734949098043,8.56e-05,96243.0,96242.0,0.87589935]
[1734949098453,8.56e-05,96243.0,96242.0,0.87489935]
[1734949098657,8.56e-05,96243.0,96242.0,0.87989935]
[1734949099068,8.56e-05,96243.0,96242.0,0.87589935]
[1734949099306,8.56e-05,96243.0,96242.0,0.87889935]
[1734949099510,8.56e-05,96243.0,96242.0,0.87989935]
[1734949099855,8.56e-05,96243.0,96242.0,0.87889935]
[1734949100268,8.56e-05,96243.0,96242.0,0.87989935]
[1734949100483,8.56e-05,96243.0,96242.0,0.74789936]
[1734949100684,8.56e-05,96243.0,96242.0,0.84789936]
[1734949100991,8.56e-05,96243.0,96242.0,0.85189936]
[1734949101213,8.56e-05,96243.0,96242.0,0.74789936]
[1734949101420,8.56e-05,96243.0,96242.0,0.75089936]
[1734949101830,8.56e-05,96243.0,96242.0,0.75189936]
[1734949103460,8.56e-05,96243.0,96242.0,0.85189936]
[1734949103634,8.56e-05,96243.0,96242.0,0.87989935]
[1734949104241,8.56e-05,96243.0,96242.0,0.87589935]
[1734949104602,8.56e-05,96243.0,96242.0,0.87889935]
[1734949105008,8.56e-05,96243.0,96242.0,0.87989935]
[1734949105474,8.56e-05,96243.0,96242.0,0.87489935]
[1734949105676,8.56e-05,96243.0,96242.0,0.87889935]
[1734949106459,8.56e-05,96243.0,96242.0,0.87789935]
[1734949107089,8.56e-05,96243.0,96242.0,0.87489935]
[1734949107286,8.56e-05,96243.0,96242.0,0.64859096]
[1734949107945,8.56e-05,96243.0,96242.0,0.64959096]
[1734949108152,8.56e-05,96243.0,96242.0,0.64659096]
[1734949108274,8.56e-05,96243.0,96242.0,0.60029096]
[1734949108481,8.56e-05,96243.0,96242.0,0.51969096]
[1734949109369,0.101394,96243.0,96242.0,0.51969096]
[1734949109575,0.13386025,96243.0,96242.0,0.51969096]
[1734949109702,0.13486025,96243.0,96242.0,0.51969096]
[1734949110812,0.13786025,96243.0,96242.0,0.51969096]
[1734949111004,0.13686025,96243.0,96242.0,0.51969096]
[1734949111751,0.13986025,96243.0,96242.0,0.51969096]
[1734949112268,0.0060856,96243.0,96242.0,0.44769095]
[1734949114045,0.0090856,96243.0,96242.0,0.44769095]
[1734949115832,0.110394,96243.0,96242.0,0.44769095]
[1734949116739,0.0090856,96243.0,96242.0,0.44769095]
[1734949117167,0.0090856,96243.0,96242.0,0.37569094]
[1734949118223,0.0090856,96243.0,96242.0,0.45289094]
[1734949119213,0.0090856,96243.0,96242.0,0.50009094]
[1734949120206,0.0060856,96243.0,96242.0,0.50009094]
[1734949120723,0.0080856,96243.0,96242.0,0.50009094]
[1734949121135,0.0060856,96243.0,96242.0,0.50009094]
[1734949121362,8.56e-05,96243.0,96242.0,0.50009094]
[1734949121544,0.0020856,96243.0,96242.0,0.50009094]
[1734949121675,0.0050856,96243.0,96242.0,0.50009094]
[1734949122100,0.0030856,96243.0,96242.0,0.50009094]
[1734949122306,0.0060856,96243.0,96242.0,0.42809093]
[1734949122503,8.56e-05,96243.0,96242.0,0.42809093]
[1734949122935,0.0030856,96243.0,96242.0,0.42809093]
[1734949123349,0.0050856,96243.0,96242.0,0.42809093]
[1734949123873,0.0030856,96243.0,96242.0,0.42809093]
[1734949124216,0.0020856,96243.0,96242.0,0.42809093]
[1734949124850,8.56e-05,96243.0,96242.0,0.42809093]
[1734949125046,0.0010856,96243.0,96242.0,0.30369093]
[1734949125204,0.0020856,96243.0,96242.0,0.30369093]
[1734949125402,0.0010856,96243.0,96242.0,0.30369093]
[1734949125826,0.0020856,96243.0,96242.0,0.30369093]
[1734949126024,0.0010856,96243.0,96242.0,0.30369093]
[1734949126949,8.56e-05,96243.0,96242.0,0.30369093]
[1734949127285,0.0010856,96243.0,96242.0,0.30369093]
[1734949127494,0.0020856,96243.0,96242.0,0.30369093]
[1734949127873,0.0010856,96243.0,96242.0,0.30369093]
[1734949128499,0.0020856,96243.0,96242.0,0.30369093]
[1734949133176,0.0020856,96243.0,96242.0,0.37889093]
[1734949134209,8.56e-05,96243.0,96242.0,0.37889093]
[1734949134471,0.0020856,96243.0,96242.0,0.37889093]
[1734949135639,0.0020856,96243.0,96242.0,0.42619093]
[1734949135840,0.0010856,96243.0,96242.0,0.42619093]
[1734949136784,8.56e-05,96243.0,96242.0,0.42619093]
[1734949137235,0.0020856,96243.0,96242.0,0.42619093]
[1734949137408,0.0010856,96243.0,96242.0,0.42619093]
[1734949137607,8.56e-05,96243.0,96242.0,0.42619093]
[1734949137840,8.56e-05,96243.0,96242.0,0.42719093]
[1734949138042,8.56e-05,96243.0,96242.0,0.42619093]
[1734949140327,0.0010856,96243.0,96242.0,0.42619093]
[1734949140532,0.0020856,96243.0,96242.0,0.42619093]
[1734949140703,8.56e-05,96243.0,96242.0,0.42619093]
[1734949140909,0.0030856,96243.0,96242.0,0.42619093]
[1734949141437,0.0020856,96243.0,96242.0,0.37889093]
[1734949141639,0.03655221,96243.0,96242.0,0.37889093]
[1734949142473,0.03655642,96243.0,96242.0,0.37889093]
[1734949143140,0.03255642,96243.0,96242.0,0.37889093]
[1734949143311,0.0030856,96243.0,96242.0,0.37889093]
[1734949143523,0.03555642,96243.0,96242.0,0.37889093]
[1734949143722,0.03255642,96243.0,96242.0,0.37889093]
[1734949144120,0.03855642,96243.0,96242.0,0.37889093]
[1734949144482,0.0060856,96243.0,96242.0,0.37889093]
[1734949144685,0.0030856,96243.0,96242.0,0.37889093]
[1734949145388,8.56e-05,96243.0,96242.0,0.37889093]
[1734949146603,0.0020856,96243.0,96242.0,0.37889093]
[1734949147097,8.56e-05,96243.0,96242.0,0.37889093]
[1734949147469,0.0040856,96243.0,96242.0,0.37889093]
[1734949147621,0.0020856,96243.0,96242.0,0.37889093]
[1734949147821,0.0030856,96243.0,96242.0,0.37889093]
[1734949148022,0.0010856,96243.0,96242.0,0.37889093]
[1734949148206,0.0020856,96243.0,96242.0,0.37889093]
[1734949148629,0.0010856,96243.0,96242.0,0.37889093]
[1734949149875,8.56e-05,96243.0,96242.0,0.37889093]
[1734949150122,0.0020856,96243.0,96242.0,0.37889093]
[1734949150359,0.0010856,96243.0,96242.0,0.37889093]
[1734949150600,8.56e-05,96243.0,96242.0,0.37889093]
[1734949150848,0.0020856,96243.0,96242.0,0.37889093]
[1734949151088,0.0010856,96243.0,96242.0,0.37889093]
[1734949151337,8.56e-05,96243.0,96242.0,0.37889093]
[1734949151820,0.0010856,96243.0,96242.0,0.37889093]
[1734949152562,0.0010856,96243.0,96242.0,0.42609093]
[1734949152771,8.56e-05,96243.0,96242.0,0.42609093]
[1734949153271,0.0010856,96243.0,96242.0,0.42609093]
[1734949153756,8.56e-05,96243.0,96242.0,0.42609093]
[1734949153996,0.0010856,96243.0,96242.0,0.42609093]
[1734949154488,8.56e-05,96243.0,96242.0,0.42609093]
[1734949154718,0.0010856,96243.0,96242.0,0.42609093]
[1734949155887,0.0010856,96243.0,96242.0,0.62739933]
[1734949156060,8.56e-05,96243.0,96242.0,0.62739933]
[1734949156290,0.0010856,96243.0,96242.0,0.65539932]
[1734949156843,8.56e-05,96243.0,96242.0,0.65539932]
[1734949157061,0.12947433,96266.0,96263.0,0.1237]
[1734949157289,0.12952965,96266.0,96265.0,0.60945899]
[1734949157505,0.16591041,96270.0,96269.0,0.12799999]
[1734949157737,0.093496,96271.0,96270.0,0.60944899]
[1734949157951,0.093496,96271.0,96270.0,0.71075739]
[1734949158162,0.093496,96271.0,96270.0,0.3250084]
[1734949158409,0.093496,96271.0,96270.0,0.1237]
[1734949158613,0.093496,96271.0,96266.0,0.0785]
[1734949158817,0.11396573,96271.0,96266.0,0.0785]
[1734949159027,0.11396573,96271.0,96269.0,0.34183271]
[1734949159028,0.02046973,96271.0,96269.0,0.34183271]
[1734949159228,0.41347774,96270.0,96269.0,0.34183271]
[1734949159436,0.64202484,96270.0,96269.0,0.11014152]
[1734949159659,0.64202484,96270.0,96269.0,0.08629572]
[1734949159870,0.45277201,96259.0,96258.0,0.24711532]
[1734949160099,0.56350074,96259.0,96258.0,0.24711532]
[1734949160310,0.173,96256.0,96253.0,0.09263653]
[1734949160511,0.023,96254.0,96253.0,0.09263653]
[1734949160715,0.09970575,96263.0,96253.0,0.09263653]
[1734949160944,0.1013084,96262.0,96253.0,0.12063652]
[1734949161152,0.003,96259.0,96258.0,0.001]
[1734949161362,0.1323084,96259.0,96258.0,0.001]
[1734949161569,0.07200001,96252.0,96242.0,0.000171]
[1734949161772,0.15673231,96251.0,96242.0,0.000171]
[1734949161978,0.023,96249.0,96242.0,0.000171]
[1734949162184,0.2078,96246.0,96242.0,0.000171]
[1734949162395,0.207807,96243.0,96224.0,0.09263653]
[1734949162594,0.09970575,96234.0,96217.0,0.0001712]
[1734949162805,0.15673231,96233.0,96211.0,0.10277892]
[1734949162961,0.03242391,96232.0,96217.0,5.532e-05]
[1734949163135,0.09970575,96230.0,96217.0,5.532e-05]
[1734949163343,0.1013084,96229.0,96217.0,5.532e-05]
[1734949163571,0.02108775,96218.0,96217.0,5.532e-05]
[1734949163977,0.1013084,96229.0,96217.0,5.532e-05]
[1734949164531,0.1023084,96229.0,96217.0,5.532e-05]
[1734949164958,0.02112921,96227.0,96217.0,5.532e-05]
[1734949165157,0.12243761,96227.0,96217.0,5.532e-05]
[1734949165780,0.12243761,96227.0,96217.0,0.00105532]
[1734949166052,0.12243761,96227.0,96217.0,0.00122652]
[1734949166219,0.1013084,96226.0,96217.0,0.00022652]
[1734949167204,0.02412921,96227.0,96211.0,0.0380265]
[1734949167408,0.001,96226.0,96211.0,0.01007974]
[1734949167629,0.001,96226.0,96211.0,0.03807973]
[1734949167819,0.003,96226.0,96211.0,0.03807973]
[1734949168638,0.003,96226.0,96215.0,0.02799999]
[1734949168878,0.002,96226.0,96215.0,0.02799999]
[1734949169651,0.002,96226.0,96211.0,0.01007974]
[1734949169846,0.12243761,96227.0,96211.0,0.01007974]
[1734949170061,0.002,96226.0,96212.0,0.207874]
[1734949170268,0.004,96226.0,96211.0,0.03807973]
[1734949170995,0.12243761,96227.0,96211.0,0.01007974]
[1734949171253,0.12243761,96227.0,96212.0,0.207874]
[1734949171877,60.0,96451.0,96211.0,0.03807973]
[1734949171878,0.02035352,96245.0,96228.0,0.02799999]
[1734949172015,0.07251098,96254.0,96252.0,0.207787]
[1734949172414,0.07251098,96254.0,96251.0,0.02799999]
[1734949172652,0.07251098,96254.0,96250.0,0.256291]
[1734949172847,0.07251098,96254.0,96251.0,0.02799999]
[1734949173007,0.07251098,96254.0,96250.0,0.256291]
[1734949173207,0.07251098,96254.0,96250.0,0.0485]
[1734949173496,0.09970575,96260.0,96237.0,0.0497]
[1734949173720,0.1013084,96259.0,96251.0,0.004]
[1734949174095,0.001,96254.0,96251.0,0.013]
[1734949174315,0.09970575,96261.0,96251.0,0.004]
[1734949174516,0.0209197,96265.0,96251.0,0.004]
[1734949174697,0.0209197,96265.0,96258.0,0.02799999]
[1734949175243,0.0209197,96265.0,96256.0,0.02799999]
[1734949175453,8.56e-05,96270.0,96252.0,0.227]
[1734949175454,8.56e-05,96270.0,96261.0,0.02799999]
[1734949175654,0.02107998,96266.0,96261.0,0.02799999]
[1734949175867,8.56e-05,96270.0,96261.0,0.02799999]
[1734949176021,8.56e-05,96270.0,96266.0,0.02799999]
[1734949176203,0.00542501,96269.0,96252.0,0.127]
[1734949176414,0.00542501,96269.0,96253.0,0.1]
[1734949176613,0.00542501,96269.0,96254.0,0.02799999]
[1734949177378,0.0010856,96270.0,96254.0,0.02799999]
[1734949177526,0.001,96254.0,96253.0,0.12799999]
[1734949177934,0.0010856,96270.0,96252.0,0.127]
[1734949178188,0.0010856,96270.0,96262.0,0.02799999]
[1734949178414,8.56e-05,96270.0,96254.0,0.001]
[1734949178651,8.56e-05,96270.0,96261.0,0.02799999]
[1734949179085,8.56e-05,96265.0,96261.0,0.02799999]
[1734949179283,8.56e-05,96265.0,96258.0,0.02799999]
[1734949179499,8.56e-05,96265.0,96261.0,0.02799999]
[1734949180310,8.56e-05,96265.0,96262.0,0.02799999]
[1734949180520,8.56e-05,96265.0,96264.0,0.02799999]
[1734949182085,8.56e-05,96265.0,96264.0,0.10769999]
[1734949182315,8.56e-05,96265.0,96264.0,0.18159998]
[1734949183091,8.56e-05,96265.0,96264.0,0.18259998]
[1734949183637,8.56e-05,96265.0,96264.0,0.18559998]
[1734949183835,8.56e-05,96265.0,96264.0,0.18259998]
[1734949184150,8.56e-05,96265.0,96264.0,0.18759998]
[1734949184492,8.56e-05,96265.0,96264.0,0.18659998]
[1734949185036,8.56e-05,96265.0,96264.0,0.20170276]
[1734949186645,8.56e-05,96265.0,96264.0,0.30301116]
[1734949187061,8.56e-05,96265.0,96264.0,0.43990838]
[1734949188013,8.56e-05,96265.0,96264.0,0.33159998]
[1734949188211,8.56e-05,96265.0,96264.0,0.18759998]
[1734949188635,8.56e-05,96265.0,96264.0,0.33759998]
[1734949188956,8.56e-05,96265.0,96264.0,0.33559998]
[1734949189358,8.56e-05,96265.0,96264.0,0.33959998]
[1734949189554,8.56e-05,96265.0,96264.0,0.33559998]
[1734949189757,8.56e-05,96265.0,96264.0,0.34459998]
[1734949189995,0.0010856,96265.0,96264.0,0.34459998]
[1734949191941,0.0010856,96265.0,96264.0,0.34477118]
[1734949192492,0.0010856,96265.0,96264.0,0.44607958]
[1734949192789,0.0010856,96265.0,96264.0,0.4588118]
[1734949193524,8.56e-05,96270.0,96269.0,0.1]
[1734949193657,6e-07,96270.0,96269.0,0.48034692]
[1734949193866,6e-07,96270.0,96269.0,0.4793084]
[1734949194760,6e-07,96270.0,96269.0,0.4823084]
[1734949194892,0.01292316,96319.0,96269.0,0.3543084]
[1734949195077,0.00063281,96309.0,96287.0,0.1]
[1734949195279,0.00063281,96309.0,96290.0,0.1]
[1734949196259,0.00063281,96309.0,96292.0,0.15]
[1734949196642,0.00063281,96309.0,96292.0,0.25]
[1734949197161,0.00363281,96309.0,96292.0,0.25]
[1734949197358,0.00363281,96309.0,96292.0,0.1]
[1734949197583,0.00063281,96309.0,96292.0,0.1]
[1734949198320,0.00363281,96309.0,96301.0,0.1]
[1734949199514,0.00363281,96309.0,96294.0,0.15]
[1734949199712,0.00363281,96309.0,96296.0,0.1]
[1734949199937,0.00363281,96309.0,96294.0,0.15]
[1734949200142,0.00363281,96309.0,96301.0,0.002]
[1734949200346,0.1825084,96308.0,96301.0,0.002]
[1734949200723,0.02113834,96304.0,96301.0,0.002]
[1734949201070,0.1013084,96308.0,96283.0,0.1]
[1734949201431,0.00063281,96309.0,96286.0,0.1]
[1734949201634,0.02096422,96309.0,96287.0,0.1]
[1734949201873,0.003,96308.0,96291.0,0.1]
[1734949202072,0.003,96308.0,96292.0,0.2296]
[1734949202253,0.003,96308.0,96292.0,0.15759999]
[1734949202459,0.003,96308.0,96296.0,0.1]
[1734949203089,0.003,96308.0,96292.0,0.00759999]
[1734949203302,0.076159,96323.0,96294.0,0.1]
[1734949203303,0.09970575,96320.0,96294.0,0.1]
[1734949203507,0.02121737,96311.0,96294.0,0.1]
[1734949203935,0.001,96309.0,96294.0,0.1]
[1734949204347,8.56e-05,96308.0,96294.0,0.1]
[1734949205542,0.0010856,96308.0,96294.0,0.1]
[1734949205944,0.0792,96307.0,96265.0,0.02065584]
[1734949206169,0.09970575,96304.0,96273.0,0.0825]
[1734949206471,0.1013084,96303.0,96273.0,0.0825]
[1734949206668,0.1013084,96303.0,96276.0,0.1]
[1734949207927,0.1023084,96303.0,96276.0,0.1]
[1734949208128,0.001,96303.0,96282.0,0.1]
[1734949208745,0.001,96303.0,96290.0,0.1]
[1734949209123,0.001,96303.0,96297.0,0.1]
[1734949209324,0.001,96303.0,96291.0,0.1013084]
[1734949209325,0.001,96303.0,96302.0,0.1]
[1734949209706,8.56e-05,96308.0,96302.0,0.1]
[1734949210114,0.001,96303.0,96302.0,0.1]
[1734949210492,8.56e-05,96308.0,96302.0,0.1]
[1734949210850,8.56e-05,96308.0,96306.0,0.1]
[1734949211063,8.56e-05,96308.0,96307.0,0.1]
[1734949212205,8.56e-05,96308.0,96307.0,0.1751]
[1734949212406,8.56e-05,96308.0,96307.0,0.4294084]
[1734949213827,8.56e-05,96308.0,96307.0,0.4304084]
[1734949216549,8.56e-05,96308.0,96307.0,0.004]
[1734949216753,8.56e-05,96308.0,96307.0,0.1]
[1734949216971,8.56e-05,96308.0,96307.0,0.2013084]
[1734949217148,8.56e-05,96308.0,96307.0,0.2063084]
[1734949218116,8.56e-05,96308.0,96307.0,0.3563084]
[1734949218319,8.56e-05,96308.0,96307.0,0.3523084]
[1734949218761,8.56e-05,96308.0,96307.0,0.3553084]
[1734949219479,8.56e-05,96308.0,96307.0,0.2053084]
[1734949220132,8.56e-05,96308.0,96307.0,0.3553084]
[1734949220848,8.56e-05,96308.0,96307.0,0.3543084]
[1734949221298,8.56e-05,96308.0,96307.0,0.3513084]
[1734949221714,8.56e-05,96308.0,96307.0,0.3563084]
[1734949223131,8.56e-05,96308.0,96307.0,0.37236125]
[1734949227084,8.56e-05,96308.0,96307.0,0.42066125]
[1734949227412,8.56e-05,96308.0,96307.0,0.42083245]
[1734949227669,8.56e-05,96308.0,96307.0,0.2547796]
[1734949227873,8.56e-05,96308.0,96307.0,0.0534712]
[1734949228076,8.56e-05,96308.0,96307.0,0.1051712]
[1734949228885,8.56e-05,96308.0,96307.0,0.0011712]
[1734949229221,8.56e-05,96308.0,96307.0,0.0031712]
[1734949229427,8.56e-05,96308.0,96307.0,0.1041712]
[1734949232300,8.56e-05,96308.0,96307.0,0.10972223]
[1734949234880,8.56e-05,96308.0,96307.0,0.00972223]
[1734949235079,0.0753856,96308.0,96307.0,0.00972223]
[1734949235487,0.0753856,96308.0,96307.0,0.0041712]
[1734949235894,0.176694,96308.0,96307.0,0.0041712]
[1734949236095,0.20908277,96308.0,96307.0,0.0041712]
[1734949236477,0.20908277,96308.0,96307.0,0.0001712]
[1734949236649,0.21008277,96308.0,96307.0,0.0001712]
[1734949236851,0.41774977,96308.0,96307.0,0.0001712]
[1734949237051,0.21008277,96308.0,96307.0,0.0001712]
[1734949237262,0.384362,96308.0,96283.0,0.09884617]
[1734949237463,0.1013084,96307.0,96282.0,0.1]
[1734949237656,0.24006318,96306.0,96284.0,0.00539752]
[1734949237858,0.207675,96304.0,96284.0,0.00539752]
[1734949238261,0.1013084,96305.0,96282.0,0.01983126]
[1734949238626,0.1013084,96305.0,96281.0,0.1]
[1734949238830,0.1013084,96305.0,96282.0,0.00815851]
[1734949239151,0.1013084,96305.0,96281.0,0.1]
[1734949239552,0.1013084,96305.0,96282.0,0.00815851]
[1734949239949,0.0753856,96308.0,96287.0,0.1]
[1734949240568,0.0753856,96308.0,96307.0,0.0001712]
[1734949242325,0.0753856,96308.0,96286.0,0.02817119]
[1734949242524,0.0753856,96308.0,96284.0,0.02817119]
[1734949242679,0.0773856,96308.0,96285.0,0.02817119]
[1734949243002,0.178694,96308.0,96285.0,0.02817119]
[1734949243182,0.176694,96308.0,96285.0,0.02817119]
[1734949243385,0.178694,96308.0,96285.0,0.02817119]
[1734949243602,0.178694,96308.0,96277.0,0.02817119]
[1734949243860,0.178694,96308.0,96285.0,0.02817119]
[1734949244082,0.176694,96308.0,96285.0,0.02817119]
[1734949244303,0.176694,96308.0,96278.0,0.1013084]
[1734949244304,0.178694,96308.0,96286.0,0.207714]
[1734949244694,0.1013084,96307.0,96287.0,0.00822748]
[1734949244838,0.1013084,96307.0,96288.0,0.20771]
[1734949245052,0.1013084,96307.0,96289.0,0.207708]
[1734949245289,0.1013084,96307.0,96290.0,0.207705]
[1734949245758,0.1013084,96307.0,96291.0,0.207703]
[1734949245984,0.09970575,96301.0,96291.0,0.00822748]
[1734949246189,0.1002,96298.0,96264.0,0.1419638]
[1734949246564,0.0772,96289.0,96265.0,0.09984424]
[1734949246734,0.1013084,96288.0,96265.0,0.09984424]
[1734949247547,0.230712,96287.0,96265.0,0.09984424]
[1734949247711,0.023,96285.0,96265.0,0.00735164]
[1734949247911,0.1013084,96284.0,96264.0,0.0001712]
[1734949248111,0.207729,96279.0,96264.0,0.0001712]
[1734949248430,0.1013084,96278.0,96264.0,0.0001712]
[1734949248891,0.30792,96283.0,96264.0,0.0001712]
[1734949248892,0.0772,96283.0,96264.0,0.0001712]
[1734949249196,0.1013084,96282.0,96264.0,0.0001712]
[1734949249450,0.1013084,96282.0,96265.0,0.00735164]
[1734949249948,0.1013084,96282.0,96264.0,0.0001712]
[1734949250199,0.207725,96281.0,96264.0,0.0001712]
[1734949250474,0.004,96279.0,96265.0,0.00735164]
[1734949250680,0.20101415,96280.0,96264.0,0.0001712]
[1734949251267,0.1013084,96280.0,96264.0,0.0001712]
[1734949251671,0.0772,96283.0,96264.0,0.0001712]
[1734949251672,0.0772,96283.0,96270.0,0.02817119]
[1734949251825,0.0821,96290.0,96277.0,0.207733]
[1734949252035,0.02023587,96300.0,96281.0,0.02817119]
[1734949252036,0.003,96282.0,96281.0,0.02817119]
[1734949252237,0.003,96282.0,96281.0,0.03446392]
[1734949252459,0.079,96300.0,96282.0,0.207723]
[1734949252629,0.079,96300.0,96284.0,0.415436]
[1734949253043,8.57e-05,96289.0,96285.0,0.00524394]
[1734949253241,8.57e-05,96289.0,96286.0,0.207714]
[1734949253673,8.57e-05,96289.0,96286.0,0.21295794]
[1734949253904,8.57e-05,96289.0,96286.0,0.00524394]
[1734949254269,8.57e-05,96289.0,96285.0,0.207716]
[1734949254472,8.57e-05,96289.0,96286.0,0.00524394]
[1734949255808,8.57e-05,96289.0,96280.0,0.17018991]
[1734949255995,8.57e-05,96289.0,96281.0,0.00524394]
[1734949256199,8.57e-05,96289.0,96282.0,0.207723]
[1734949256627,8.57e-05,96289.0,96283.0,0.00524394]
[1734949257620,8.57e-05,96289.0,96284.0,0.207718]
[1734949258054,8.57e-05,96289.0,96282.0,0.207723]
[1734949258263,8.57e-05,96289.0,96285.0,0.00524394]
[1734949258439,8.57e-05,96289.0,96280.0,0.207725]
[1734949258900,8.57e-05,96289.0,96282.0,0.207723]
[1734949259336,8.57e-05,96289.0,96280.0,0.207725]
[1734949259512,8.57e-05,96289.0,96283.0,0.00524394]
[1734949259726,8.57e-05,96289.0,96280.0,0.207725]
[1734949259927,8.57e-05,96289.0,96284.0,0.00524394]
[1734949260129,8.57e-05,96289.0,96280.0,0.207725]
[1734949260366,8.57e-05,96289.0,96285.0,0.00524394]
[1734949260570,8.57e-05,96289.0,96278.0,0.20773]
[1734949260782,8.57e-05,96289.0,96286.0,0.00524394]
[1734949260980,8.57e-05,96289.0,96278.0,0.20773]
[1734949261187,8.57e-05,96289.0,96286.0,0.00524394]
[1734949261395,8.57e-05,96289.0,96278.0,0.20773]
[1734949261606,8.57e-05,96289.0,96286.0,0.00524394]
[1734949261812,8.57e-05,96289.0,96273.0,0.0475]
[1734949262028,8.57e-05,96289.0,96286.0,0.00524394]
[1734949262244,8.57e-05,96289.0,96273.0,0.0475]
[1734949262386,8.57e-05,96289.0,96286.0,0.00524394]
[1734949262593,8.57e-05,96289.0,96273.0,0.0475]
[1734949262805,8.57e-05,96289.0,96286.0,0.00524394]
[1734949262964,8.57e-05,96289.0,96273.0,0.0475]
[1734949263162,8.57e-05,96289.0,96286.0,0.00524394]
[1734949263425,8.57e-05,96289.0,96282.0,0.207723]
[1734949263659,8.57e-05,96289.0,96286.0,0.00524394]
[1734949263864,8.57e-05,96289.0,96282.0,0.207723]
[1734949264075,8.57e-05,96289.0,96286.0,0.00524394]
[1734949264255,0.00115962,96287.0,96286.0,0.00524394]
[1734949264514,0.00115962,96287.0,96282.0,0.415445]
[1734949264714,0.00115962,96287.0,96286.0,0.00524394]
[1734949264918,0.00315962,96287.0,96282.0,0.415445]
[1734949265045,0.00315962,96287.0,96286.0,0.00524394]
[1734949265253,0.00215962,96287.0,96282.0,0.415445]
[1734949265502,0.00215962,96287.0,96283.0,0.00524394]
[1734949265710,0.00215962,96287.0,96284.0,0.207718]
[1734949266282,0.00215962,96287.0,96285.0,0.00518452]
[1734949266507,0.00215962,96287.0,96286.0,0.207714]
[1734949266711,0.00015962,96287.0,96285.0,0.00518452]
[1734949266912,0.00015962,96287.0,96284.0,0.207718]
[1734949267114,0.00115962,96287.0,96286.0,0.00518452]
[1734949267333,0.00015962,96287.0,96284.0,0.207718]
[1734949267501,0.00015962,96287.0,96286.0,0.00518452]
[1734949267700,0.00015962,96287.0,96286.0,0.14774692]
[1734949267931,0.00015962,96287.0,96286.0,0.1529313]
[1734949268191,0.00015962,96287.0,96286.0,0.15293126]
[1734949268323,0.00015962,96287.0,96286.0,0.22853126]
[1734949268529,0.00015962,96287.0,96286.0,0.22749292]
[1734949268956,0.00015962,96287.0,96286.0,0.37849292]
[1734949270183,0.00015962,96287.0,96286.0,0.38249292]
[1734949270912,0.00015962,96287.0,96286.0,0.05558452]
[1734949271918,0.07785962,96287.0,96286.0,0.01018452]
[1734949272131,0.17916802,96287.0,96286.0,0.01018452]
[1734949272361,0.207726,96281.0,96268.0,0.02549259]
[1734949273535,0.207726,96281.0,96264.0,0.0001712]
[1734949273754,0.209726,96281.0,96264.0,0.0001712]
[1734949274271,0.417452,96281.0,96264.0,0.0001712]
[1734949274486,0.207729,96279.0,96264.0,0.0001712]
[1734949274896,0.15,96280.0,96264.0,0.0001712]
[1734949275101,0.207742,96274.0,96264.0,0.0001712]
[1734949275500,0.15,96280.0,96264.0,0.0001712]
[1734949275679,0.208729,96279.0,96264.0,0.0001712]
[1734949275914,0.207733,96277.0,96264.0,0.0001712]
[1734949276497,0.009,96279.0,96265.0,0.0011714]
[1734949276643,0.03238488,96278.0,96265.0,0.0001714]
[1734949276858,0.03238488,96278.0,96265.0,0.0011714]
[1734949277066,0.016,96279.0,96268.0,0.0001714]
[1734949277293,0.207731,96278.0,96268.0,0.0001714]
[1734949277449,0.207747,96271.0,96268.0,0.0001714]
[1734949277816,0.2324,96270.0,96268.0,0.0001714]
[1734949278688,0.0824,96270.0,96268.0,0.0001714]
[1734949279216,0.0824,96270.0,96268.0,0.0011714]
[1734949279561,0.0844,96270.0,96268.0,0.0001714]
[1734949279764,0.0884,96270.0,96268.0,0.0001714]
[1734949280442,0.4590594,96269.0,96268.0,0.0001714]
[1734949281090,0.5644594,96269.0,96268.0,0.0001714]
[1734949281710,0.5664594,96269.0,96268.0,0.0001714]
[1734949282157,0.5644594,96269.0,96268.0,0.0001714]
[1734949282541,0.62610202,96269.0,96268.0,0.0011714]
[1734949283255,0.63010202,96269.0,96268.0,0.0011714]
[1734949283616,0.63810202,96269.0,96268.0,0.0021714]
[1734949286147,0.73810202,96269.0,96268.0,0.0021714]
[1734949286776,0.83810202,96269.0,96268.0,0.0021714]
[1734949287426,0.83810202,96269.0,96268.0,0.0001714]
[1734949287625,0.83950202,96269.0,96268.0,0.0001714]
[1734949287841,0.89637739,96269.0,96268.0,4e-07]
[1734949288023,0.83950202,96269.0,96268.0,4e-07]
[1734949288223,0.655959,96265.0,96264.0,2e-07]
[1734949288437,0.7896113,96265.0,96264.0,2e-07]